bitfinex-derivatives/quotes_BTCF0:USTF0_20241110
["timestamp","ask_amount","ask_price","bid_price","bid_amount"]
[1731255129910,0.00188247,79726.0,79725.0,0.062662]
[1731255130109,0.17005784,79726.0,79725.0,0.062662]
[1731255131911,0.062664,79723.0,79720.0,0.062665]
[1731255132109,0.14728251,79722.0,79720.0,0.062665]
[1731255132717,0.062666,79720.0,79718.0,0.1553]
[1731255133502,0.062666,79719.0,79717.0,0.3608]
[1731255133713,0.08461851,79722.0,79717.0,0.3608]
[1731255134014,0.06267,79715.0,79709.0,0.48936]
[1731255134214,0.10668,79714.0,79712.0,0.062672]
[1731255135012,0.169351,79714.0,79712.0,0.062672]
[1731255135617,0.10668,79714.0,79712.0,0.062672]
[1731255136515,0.10668,79714.0,79713.0,0.062671]
[1731255136706,0.062667,79719.0,79718.0,0.062667]
[1731255137013,0.169347,79719.0,79718.0,0.062667]
[1731255138020,0.10668,79719.0,79718.0,0.062667]
[1731255139114,0.062663,79724.0,79710.0,0.08461851]
[1731255139315,0.03070994,79723.0,79710.0,0.08461851]
[1731255139615,0.10648,79722.0,79721.0,0.062665]
[1731255140820,0.06337784,79726.0,79716.0,0.3608]
[1731255141008,0.06337784,79726.0,79716.0,0.44541851]
[1731255141209,0.10648,79725.0,79716.0,0.44541851]
[1731255141404,0.10648,79725.0,79724.0,0.062663]
[1731255141605,0.169142,79725.0,79724.0,0.062663]
[1731255143319,0.10648,79725.0,79724.0,0.062663]
[1731255147023,0.169142,79725.0,79724.0,0.062663]
[1731255149323,0.06337784,79726.0,79716.0,0.3608]
[1731255149628,0.06337784,79726.0,79725.0,0.062662]
[1731255149827,0.16985784,79726.0,79725.0,0.062662]
[1731255151327,0.23251884,79726.0,79725.0,0.062662]
[1731255152823,0.2005674,79726.0,79716.0,0.3608]
[1731255153123,0.16985784,79726.0,79725.0,0.062662]
[1731255153627,0.20056643,79726.0,79725.0,0.062662]
[1731255155517,0.26322743,79726.0,79725.0,0.062662]
[1731255155723,0.34784594,79726.0,79725.0,0.062662]
[1731255156120,0.26322743,79726.0,79725.0,0.062662]
[1731255156520,0.20056643,79726.0,79725.0,0.062662]
[1731255156726,0.26322743,79726.0,79725.0,0.062662]
[1731255158427,0.23251884,79726.0,79725.0,0.062662]
[1731255158622,0.26322764,79726.0,79725.0,0.062662]
[1731255163023,0.062665,79721.0,79720.0,0.062665]
[1731255163220,0.062668,79717.0,79716.0,0.062668]
[1731255163436,0.0933768,79717.0,79716.0,0.062668]
[1731255165430,0.0933768,79717.0,79709.0,0.3608]
[1731255165431,0.062671,79714.0,79710.0,0.062673]
[1731255165624,0.1371888,79713.0,79709.0,0.3608]
[1731255165820,0.03071106,79712.0,79711.0,0.062673]
[1731255166023,0.10648,79713.0,79711.0,0.062673]
[1731255166220,0.25377051,79713.0,79711.0,0.062673]
[1731255166424,0.19109851,79713.0,79709.0,0.3608]
[1731255166631,0.19109851,79713.0,79706.0,0.3608]
[1731255166632,0.062674,79710.0,79706.0,0.3608]
[1731255166835,0.0772,79709.0,79708.0,0.06455585]
[1731255174938,0.18348,79709.0,79708.0,0.06455585]
[1731255179033,0.139874,79709.0,79708.0,0.06455585]
[1731255179343,0.139874,79709.0,79708.0,0.00188185]
[1731255179344,0.27686734,79709.0,79708.0,0.00188185]
[1731255179836,0.30196863,79709.0,79708.0,0.00188185]
[1731255180834,0.3866524,79709.0,79708.0,0.00188185]
[1731255181238,0.30196863,79709.0,79708.0,0.06455685]
[1731255181640,0.13301463,79709.0,79708.0,0.06455685]
[1731255181947,0.13138129,79709.0,79708.0,0.06455685]
[1731255184240,0.02510129,79709.0,79708.0,0.06455685]
[1731255184437,0.10628,79709.0,79708.0,0.06455685]
[1731255184638,0.02510039,79717.0,79716.0,0.062669]
[1731255184845,0.16209117,79717.0,79716.0,0.062669]
[1731255186142,0.13138039,79717.0,79716.0,0.062669]
[1731255188648,0.16209097,79717.0,79716.0,0.062669]
[1731255189740,0.16209146,79717.0,79716.0,0.062669]
[1731255189940,0.13138039,79717.0,79716.0,0.062669]
[1731255192439,0.13138039,79717.0,79713.0,0.3608]
[1731255192440,0.06267,79714.0,79713.0,0.3608]
[1731255192755,0.24677534,79717.0,79708.0,0.00188185]
[1731255192756,0.13138039,79717.0,79716.0,0.062669]
[1731255192935,0.16209186,79717.0,79716.0,0.062669]
[1731255193144,0.05581186,79717.0,79716.0,0.062669]
[1731255193341,0.16209186,79717.0,79716.0,0.062669]
[1731255194641,0.16209075,79717.0,79716.0,0.062669]
[1731255196553,0.22475875,79717.0,79716.0,0.062669]
[1731255198850,0.16209075,79717.0,79716.0,0.062669]
[1731255199546,0.16209106,79717.0,79716.0,0.062669]
[1731255202456,0.02510039,79717.0,79716.0,0.423469]
[1731255202648,0.03070953,79717.0,79716.0,0.423469]
[1731255202850,0.10608,79722.0,79721.0,0.062665]
[1731255203051,0.13678741,79722.0,79721.0,0.14734877]
[1731255204061,0.13678644,79722.0,79721.0,0.14734877]
[1731255204359,0.13678669,79722.0,79721.0,0.14734877]
[1731255204551,0.10608,79722.0,79721.0,0.14734877]
[1731255205456,0.10608,79722.0,79721.0,0.062665]
[1731255206048,0.13678834,79722.0,79721.0,0.062665]
[1731255206451,0.01877256,79726.0,79721.0,0.062665]
[1731255206757,0.00188152,79740.0,79739.0,0.062651]
[1731255206955,0.06241421,79740.0,79739.0,0.062651]
[1731255207751,0.06053269,79740.0,79739.0,0.062651]
[1731255207947,0.10604,79741.0,79740.0,0.06265]
[1731255209769,0.2686,79751.0,79741.0,0.062649]
[1731255209946,0.33166,79742.0,79741.0,0.14733277]
[1731255212372,0.33166,79742.0,79741.0,0.44353277]
[1731255212373,0.22562,79742.0,79741.0,0.44353277]
[1731255212749,0.10604,79749.0,79748.0,0.062644]
[1731255213057,0.1806,79760.0,79756.0,0.062637]
[1731255213261,0.02510039,79769.0,79763.0,0.062632]
[1731255213459,0.58864259,79764.0,79763.0,0.062632]
[1731255213756,0.16680259,79764.0,79763.0,0.062632]
[1731255215060,0.16680259,79764.0,79763.0,0.423432]
[1731255215655,0.22943359,79764.0,79758.0,0.062636]
[1731255215872,0.2702,79763.0,79758.0,0.062636]
[1731255216564,0.2702,79763.0,79759.0,0.062635]
[1731255218164,0.332832,79763.0,79759.0,0.062635]
[1731255220369,0.2702,79763.0,79760.0,0.062634]
[1731255220561,0.062633,79762.0,79760.0,0.062634]
[1731255220863,0.02510039,79769.0,79760.0,0.062634]
[1731255220864,0.062605,79797.0,79792.0,0.062609]
[1731255221053,0.1,79800.0,79794.0,0.08468377]
[1731255221255,0.1,79800.0,79798.0,0.062604]
[1731255221654,0.15931356,79800.0,79798.0,0.062604]
[1731255222255,0.15931356,79800.0,79794.0,0.08468377]
[1731255222465,0.106,79799.0,79796.0,0.062606]
[1731255223061,0.106,79799.0,79797.0,0.062605]
[1731255223761,0.106,79799.0,79798.0,0.3608]
[1731255224560,0.106,79799.0,79798.0,0.44548377]
[1731255224756,0.106,79799.0,79798.0,0.423404]
[1731255225057,0.1,79800.0,79798.0,0.50808777]
[1731255225263,0.1,79800.0,79799.0,0.46064377]
[1731255225465,0.1,79800.0,79798.0,0.423404]
[1731255225659,0.1,79800.0,79799.0,0.08468377]
[1731255225860,0.1,79800.0,79799.0,0.46064377]
[1731255227164,0.1,79800.0,79799.0,0.54532754]
[1731255227378,0.0886,79813.0,79812.0,0.062593]
[1731255227783,0.0868,79818.0,79817.0,0.06259]
[1731255227784,0.25178139,79818.0,79817.0,0.06259]
[1731255228482,0.1928,79818.0,79817.0,0.06259]
[1731255229282,0.0868,79818.0,79817.0,0.06259]
[1731255229485,0.19256,79818.0,79817.0,0.06259]
[1731255233583,0.19256,79818.0,79812.0,0.3608]
[1731255234478,0.062593,79813.0,79812.0,0.3608]
[1731255234880,0.062593,79813.0,79812.0,0.423393]
[1731255235480,0.19256,79818.0,79812.0,0.3608]
[1731255235688,0.19256,79818.0,79815.0,0.08468377]
[1731255235889,0.19256,79818.0,79812.0,0.3608]
[1731255236087,0.062592,79814.0,79812.0,0.3608]
[1731255237380,0.19256,79818.0,79800.0,0.3608]
[1731255237584,0.062596,79809.0,79800.0,0.3608]
[1731255237782,0.062596,79809.0,79804.0,0.0626]
[1731255238181,0.08468377,79814.0,79800.0,0.3608]
[1731255238386,0.3608,79811.0,79800.0,0.3608]
[1731255238689,0.062599,79805.0,79800.0,0.3608]
[1731255238892,0.19506,79804.0,79800.0,0.3608]
[1731255239087,0.25766,79804.0,79800.0,0.3608]
[1731255239587,0.25766,79804.0,79800.0,0.423402]
[1731255240184,0.062602,79802.0,79800.0,0.3608]
[1731255240598,0.088,79801.0,79800.0,0.3608]
[1731255241886,0.088,79801.0,79800.0,0.423403]
[1731255242584,0.3608,79811.0,79800.0,0.73672]
[1731255242794,0.28596,79810.0,79803.0,0.08468377]
[1731255242996,0.28596,79810.0,79809.0,0.062596]
[1731255243496,0.28596,79810.0,79809.0,0.423396]
[1731255244989,0.1802,79810.0,79809.0,0.50807977]
[1731255245392,0.28596,79810.0,79809.0,0.50807977]
[1731255245882,0.10576,79810.0,79809.0,0.50807977]
[1731255246289,0.0953,79819.0,79818.0,0.062589]
[1731255246485,0.26234032,79819.0,79818.0,0.14727277]
[1731255246686,0.26234032,79819.0,79818.0,0.062589]
[1731255246991,0.15658032,79819.0,79818.0,0.062589]
[1731255247190,0.26234032,79819.0,79818.0,0.062589]
[1731255247800,0.26234032,79819.0,79818.0,0.50807277]
[1731255248794,0.15658032,79819.0,79818.0,0.50807277]
[1731255248996,0.26234032,79819.0,79818.0,0.50807277]
[1731255249296,0.20106,79819.0,79818.0,0.50807277]
[1731255250194,0.05876888,79825.0,79821.0,0.062586]
[1731255250390,0.10572,79828.0,79825.0,0.062583]
[1731255250589,0.10572,79828.0,79826.0,0.062582]
[1731255250590,0.03102622,79827.0,79826.0,0.062582]
[1731255252391,0.10572,79828.0,79825.0,0.3608]
[1731255252587,0.16469365,79828.0,79827.0,0.062582]
[1731255252794,0.19577682,79828.0,79827.0,0.062582]
[1731255253199,0.16469365,79828.0,79827.0,0.062582]
[1731255255995,0.062582,79826.0,79825.0,0.3608]
[1731255256794,0.062592,79814.0,79813.0,0.062593]
[1731255257100,0.10572,79817.0,79816.0,0.06259]
[1731255260504,0.16831,79817.0,79816.0,0.06259]
[1731255260797,0.46652,79817.0,79811.0,0.00187934]
[1731255261003,0.062593,79812.0,79811.0,0.00187934]
[1731255263197,0.09326944,79812.0,79811.0,0.00187934]
[1731255263400,0.09327077,79812.0,79811.0,0.00187934]
[1731255263703,0.062604,79799.0,79798.0,0.062604]
[1731255263901,0.168164,79799.0,79798.0,0.062604]
[1731255264096,0.3608,79803.0,79790.0,0.05182437]
[1731255264297,0.062606,79796.0,79795.0,0.423407]
[1731255264498,0.0928,79798.0,79792.0,0.062609]
[1731255264698,0.062608,79793.0,79792.0,0.062609]
[1731255265104,0.062606,79796.0,79789.0,0.062611]
[1731255265294,0.062609,79793.0,79791.0,0.062609]
[1731255265499,0.062609,79793.0,79792.0,0.062609]
[1731255269906,0.062609,79793.0,79792.0,0.04395441]
[1731255270514,0.14126886,79797.0,79794.0,0.062607]
[1731255270811,0.14126886,79797.0,79790.0,0.3608]
[1731255271208,0.062606,79796.0,79790.0,0.3608]
[1731255271403,0.062607,79795.0,79790.0,0.3608]
[1731255273712,0.10556,79794.0,79790.0,0.3608]
[1731255274114,0.10556,79794.0,79782.0,0.3608]
[1731255274312,0.08468377,79789.0,79782.0,0.3608]
[1731255274508,0.3608,79792.0,79779.0,0.062619]
[1731255274509,0.062614,79786.0,79779.0,0.062619]
[1731255274909,0.05076886,79797.0,79785.0,0.376]
[1731255275114,0.00188066,79803.0,79796.0,0.08468377]
[1731255275318,0.00188066,79803.0,79794.0,0.3608]
[1731255275319,0.3608,79810.0,79807.0,0.062597]
[1731255275614,0.03067853,79809.0,79807.0,0.062597]
[1731255275818,0.03067853,79809.0,79801.0,0.423402]
[1731255275819,0.062597,79808.0,79801.0,0.423402]
[1731255276020,0.0888,79807.0,79801.0,0.423402]
[1731255276523,0.0888,79807.0,79804.0,0.0626]
[1731255277022,0.0888,79807.0,79801.0,0.3608]
[1731255277221,0.0888,79807.0,79805.0,0.062599]
[1731255279511,0.151398,79807.0,79805.0,0.062599]
[1731255280017,0.0888,79807.0,79806.0,0.062598]
[1731255281920,0.151397,79807.0,79806.0,0.062598]
[1731255283713,0.256957,79807.0,79801.0,0.423401]
[1731255283913,0.03067746,79806.0,79801.0,0.423401]
[1731255284109,0.062601,79803.0,79801.0,0.3608]
[1731255284518,0.062601,79803.0,79799.0,0.062603]
[1731255284724,0.0306783,79802.0,79799.0,0.062603]
[1731255285016,0.062601,79803.0,79799.0,0.062603]
[1731255285217,0.19436,79807.0,79799.0,0.062603]
[1731255285409,0.03067886,79806.0,79793.0,0.3608]
[1731255285613,0.062603,79800.0,79798.0,0.062604]
[1731255286422,0.03067946,79799.0,79798.0,0.062604]
[1731255286623,0.062603,79800.0,79798.0,0.062604]
[1731255286817,0.19436,79807.0,79793.0,0.3608]
[1731255287127,0.0626,79804.0,79793.0,0.3608]
[1731255287426,0.03067935,79803.0,79800.0,0.062603]
[1731255287725,0.03067812,79802.0,79801.0,0.062602]
[1731255290126,0.13607812,79802.0,79801.0,0.062602]
[1731255291815,0.19867912,79802.0,79801.0,0.062602]
[1731255292220,0.062605,79798.0,79797.0,0.062605]
[1731255292518,0.19868312,79798.0,79797.0,0.062605]
[1731255292719,0.13607925,79798.0,79783.0,0.0018798]
[1731255292919,0.13607925,79798.0,79783.0,0.0644958]
[1731255292920,0.062615,79785.0,79783.0,0.0644958]
[1731255293124,0.062615,79785.0,79783.0,0.0018798]
[1731255293125,0.22548176,79784.0,79783.0,0.0018798]
[1731255293327,0.31448176,79784.0,79783.0,0.0018798]
[1731255293726,0.26435708,79784.0,79783.0,0.0018798]
[1731255293925,0.26436219,79784.0,79783.0,0.0018798]
[1731255294136,0.062622,79775.0,79774.0,0.00533]
[1731255294325,0.062622,79775.0,79764.0,0.00014471]
[1731255294326,0.06263,79765.0,79764.0,0.00014471]
[1731255294623,0.16803,79765.0,79764.0,0.00014471]
[1731255294928,0.19872308,79765.0,79764.0,0.00014471]
[1731255295136,0.64420685,79765.0,79764.0,0.00014471]
[1731255295424,0.64420685,79765.0,79750.0,0.00188086]
[1731255295425,0.58157685,79765.0,79750.0,0.00188086]
[1731255295626,0.58157685,79765.0,79750.0,0.08656463]
[1731255295627,0.062636,79758.0,79750.0,0.08656463]
[1731255296433,0.062637,79757.0,79750.0,0.08656463]
[1731255297830,0.0865,79763.0,79754.0,0.062639]
[1731255297831,0.1054,79756.0,79754.0,0.062639]
[1731255298028,0.1054,79756.0,79755.0,0.3608]
[1731255298228,0.0865,79763.0,79755.0,0.3608]
[1731255298430,0.10544,79762.0,79755.0,0.3608]
[1731255298731,0.10544,79762.0,79758.0,0.062635]
[1731255299836,0.10544,79762.0,79755.0,0.3608]
[1731255300042,0.062637,79757.0,79751.0,0.062641]
[1731255301337,0.168073,79762.0,79755.0,0.062638]
[1731255301538,0.062634,79761.0,79755.0,0.062638]
[1731255302129,0.062634,79760.0,79755.0,0.062638]
[1731255302329,0.10544,79762.0,79754.0,0.08468377]
[1731255302531,0.10544,79761.0,79758.0,0.062636]
[1731255303338,0.06264,79754.0,79750.0,0.36268086]
[1731255304335,0.062636,79758.0,79750.0,0.36268086]
[1731255304535,0.062637,79757.0,79750.0,0.42532286]
[1731255305539,0.062637,79757.0,79752.0,0.06264]
[1731255307238,0.062634,79760.0,79750.0,0.36268086]
[1731255307441,0.062638,79755.0,79750.0,0.36268086]
[1731255308242,0.062638,79755.0,79750.0,0.42532286]
[1731255308650,0.168074,79761.0,79756.0,0.062637]
[1731255308844,0.10544,79760.0,79758.0,0.08468377]
[1731255309039,0.10544,79760.0,79759.0,0.062635]
[1731255309234,0.02508492,79764.0,79763.0,0.062632]
[1731255309439,0.13052492,79764.0,79763.0,0.062632]
[1731255309940,0.00188095,79770.0,79769.0,0.062627]
[1731255310244,0.10732095,79770.0,79769.0,0.14731077]
[1731255310433,0.00188095,79770.0,79769.0,0.14731077]
[1731255310631,0.0872,79786.0,79781.0,0.062617]
[1731255310835,0.10544,79785.0,79781.0,0.062617]
[1731255311543,0.062615,79784.0,79781.0,0.062617]
[1731255311943,0.062615,79784.0,79776.0,0.08468377]
[1731255312137,0.062615,79784.0,79779.0,0.062619]
[1731255312338,0.10544,79783.0,79779.0,0.062619]
[1731255312542,0.13052629,79783.0,79779.0,0.062619]
[1731255313247,0.13052629,79783.0,79768.0,0.3608]
[1731255313248,0.08468377,79780.0,79759.0,0.3608]
[1731255313549,0.3608,79774.0,79759.0,0.3608]
[1731255313745,0.10544,79773.0,79759.0,0.3608]
[1731255314142,0.062628,79768.0,79760.0,0.08468377]
[1731255314345,0.10544,79773.0,79759.0,0.3608]
[1731255314346,0.10544,79773.0,79771.0,0.062625]
[1731255314553,0.10544,79773.0,79772.0,0.08468377]
[1731255315348,0.10544,79773.0,79771.0,0.062625]
[1731255317349,0.10544,79773.0,79771.0,0.14730877]
[1731255317650,0.38588629,79783.0,79771.0,0.08468377]
[1731255317852,0.10544,79782.0,79780.0,0.062618]
[1731255319854,0.43759101,79783.0,79781.0,0.062617]
[1731255320055,0.10536,79782.0,79781.0,0.062617]
[1731255321251,0.36148,79783.0,79781.0,0.062617]
[1731255321551,0.10536,79782.0,79781.0,0.062617]
[1731255321742,0.10536,79782.0,79775.0,0.242522]
[1731255321942,0.10536,79782.0,79776.0,0.062621]
[1731255321943,0.062618,79781.0,79776.0,0.062621]
[1731255322345,0.10536,79782.0,79780.0,0.062618]
[1731255324252,0.062616,79784.0,79780.0,0.062618]
[1731255324459,0.10532,79783.0,79780.0,0.062618]
[1731255324653,0.10532,79783.0,79775.0,0.1799]
[1731255324858,0.10532,79783.0,79781.0,0.062618]
[1731255325655,0.062616,79784.0,79775.0,0.1799]
[1731255325855,0.10532,79783.0,79782.0,0.062617]
[1731255326961,0.00628161,79800.0,79778.0,0.08468377]
[1731255326962,0.0886,79794.0,79778.0,0.08468377]
[1731255327261,0.062605,79798.0,79793.0,0.08468377]
[1731255327262,0.148905,79798.0,79793.0,0.08468377]
[1731255327456,0.10532,79795.0,79794.0,0.062608]
[1731255327647,0.43816096,79796.0,79794.0,0.062608]
[1731255327848,0.062609,79793.0,79789.0,0.062611]
[1731255328060,0.062609,79793.0,79791.0,0.06261]
[1731255328255,0.10532,79792.0,79791.0,0.06261]
[1731255331158,0.10532,79792.0,79786.0,0.3608]
[1731255331362,0.062613,79787.0,79786.0,0.3608]
[1731255332362,0.167929,79792.0,79786.0,0.423414]
[1731255332660,0.062611,79790.0,79786.0,0.423414]
[1731255332847,0.10532,79792.0,79786.0,0.3608]
[1731255333155,0.062613,79787.0,79786.0,0.3608]
[1731255334660,0.08468377,79788.0,79770.0,0.00188022]
[1731255334957,0.062623,79775.0,79774.0,0.062623]
[1731255335163,0.167943,79775.0,79774.0,0.062623]
[1731255335662,0.062625,79773.0,79770.0,0.06450622]
[1731255336356,0.062625,79773.0,79771.0,0.062625]
[1731255337060,0.091,79774.0,79772.0,0.062624]
[1731255337855,0.091,79774.0,79767.0,0.3608]
[1731255338057,0.062627,79770.0,79767.0,0.423428]
[1731255338857,0.091,79774.0,79767.0,0.3608]
[1731255339453,0.062625,79772.0,79767.0,0.3608]
[1731255339655,0.062626,79771.0,79767.0,0.3608]
[1731255339966,0.062626,79771.0,79767.0,0.423428]
[1731255340763,0.4518,79774.0,79766.0,0.08468377]
[1731255340959,0.062628,79769.0,79766.0,0.08468377]
[1731255343071,0.062628,79769.0,79765.0,0.3608]
[1731255343475,0.062629,79767.0,79765.0,0.3608]
[1731255343768,0.03069344,79766.0,79749.0,0.423443]
[1731255343968,0.062641,79752.0,79743.0,0.062647]
[1731255344165,0.28052,79751.0,79733.0,0.0912]
[1731255344360,0.28052,79751.0,79740.0,0.06265]
[1731255344862,0.28052,79751.0,79738.0,0.08468377]
[1731255345068,0.28052,79751.0,79742.0,0.062648]
[1731255345468,0.28052,79751.0,79744.0,0.08468377]
[1731255345667,0.28052,79751.0,79747.0,0.062644]
[1731255345972,0.28052,79751.0,79744.0,0.08468377]
[1731255346272,0.33273991,79751.0,79744.0,0.14732977]
[1731255346468,0.062644,79748.0,79744.0,0.14732977]
[1731255346967,0.33273991,79751.0,79744.0,0.14732977]
[1731255347168,0.062645,79746.0,79744.0,0.08468377]
[1731255347373,0.062645,79746.0,79742.0,0.3608]
[1731255347374,0.062646,79745.0,79742.0,0.3608]
[1731255347875,0.062646,79745.0,79740.0,0.3608]
[1731255348181,0.33273991,79751.0,79740.0,0.3608]
[1731255348471,0.062647,79744.0,79740.0,0.3608]
[1731255348978,0.08468377,79741.0,79728.0,0.001881]
[1731255349162,0.3608,79734.0,79728.0,0.001881]
[1731255349361,0.062658,79730.0,79728.0,0.001881]
[1731255349569,0.10524,79729.0,79728.0,0.001881]
[1731255349874,0.062658,79730.0,79728.0,0.001881]
[1731255350069,0.19694,79729.0,79728.0,0.001881]
[1731255355874,0.19694,79729.0,79719.0,0.35476216]
[1731255356085,0.062662,79725.0,79719.0,0.29209616]
[1731255356282,0.19694,79729.0,79720.0,0.062665]
[1731255356592,0.062664,79723.0,79720.0,0.062665]
[1731255357395,0.062664,79722.0,79716.0,0.08468377]
[1731255357592,0.062664,79722.0,79716.0,0.14735277]
[1731255357887,0.08468377,79719.0,79702.0,0.3608]
[1731255358089,0.062672,79712.0,79702.0,0.44548377]
[1731255358292,0.10528,79718.0,79702.0,0.3608]
[1731255358485,0.3608,79708.0,79700.0,0.1]
[1731255358684,0.10528,79708.0,79700.0,0.1]
[1731255358888,0.19908,79708.0,79700.0,0.1]
[1731255359389,0.61124536,79708.0,79700.0,0.1]
[1731255361085,0.61124536,79708.0,79700.0,0.162681]
[1731255361289,0.61124536,79708.0,79707.0,0.05027377]
[1731255364696,0.61128536,79708.0,79707.0,0.05027377]
[1731255365292,0.67396036,79708.0,79707.0,0.05027377]
[1731255365898,1.03476036,79708.0,79707.0,0.05018379]
[1731255366102,0.062681,79701.0,79700.0,0.1]
[1731255366392,0.062681,79701.0,79671.0,0.4892]
[1731255366393,0.0627,79677.0,79673.0,0.062702]
[1731255366695,0.062701,79675.0,79673.0,0.062702]
[1731255367088,0.10532,79677.0,79675.0,0.062701]
[1731255367599,0.10532,79677.0,79667.0,0.0892]
[1731255367600,0.10532,79677.0,79671.0,0.08468377]
[1731255368301,0.10532,79677.0,79674.0,0.062702]
[1731255368698,0.10532,79677.0,79675.0,0.062701]
[1731255369085,0.10532,79677.0,79671.0,0.08468377]
[1731255369898,0.10532,79676.0,79671.0,0.14738777]
[1731255370299,0.10532,79676.0,79667.0,0.0892]
[1731255370497,0.10532,79676.0,79668.0,0.062706]
[1731255370498,0.062703,79673.0,79668.0,0.062706]
[1731255371797,0.10532,79677.0,79667.0,0.0892]
[1731255372105,0.10532,79677.0,79668.0,0.08468377]
[1731255372288,0.10532,79677.0,79671.0,0.062704]
[1731255372493,0.062702,79675.0,79671.0,0.062704]
[1731255372690,0.10532,79677.0,79671.0,0.062704]
[1731255373003,0.062702,79674.0,79671.0,0.062704]
[1731255373495,0.062703,79673.0,79667.0,0.0892]
[1731255373701,0.10532,79677.0,79669.0,0.062706]
[1731255374301,0.062702,79675.0,79670.0,0.062705]
[1731255374502,0.062702,79674.0,79670.0,0.062705]
[1731255376902,0.062702,79674.0,79671.0,0.062704]
[1731255377505,0.062702,79674.0,79667.0,0.0892]
[1731255377805,0.10536,79673.0,79672.0,0.062703]
[1731255378005,0.3608,79677.0,79672.0,0.062703]
[1731255378205,0.10536,79676.0,79672.0,0.062703]
[1731255378604,0.16806,79676.0,79672.0,0.062703]
[1731255379201,0.0627,79676.0,79674.0,0.062702]
[1731255379599,0.10524,79675.0,79674.0,0.062702]
[1731255380210,0.10524,79675.0,79671.0,0.08468377]
[1731255380402,0.10524,79675.0,79673.0,0.062702]
[1731255380603,0.10524,79675.0,79673.0,0.14738577]
[1731255380803,0.10524,79675.0,79673.0,0.062702]
[1731255383105,0.10524,79675.0,79674.0,0.062702]
[1731255388911,0.167941,79675.0,79669.0,0.062706]
[1731255389111,0.167941,79675.0,79670.0,0.062705]
[1731255389711,0.167941,79675.0,79671.0,0.062704]
[1731255390514,0.167941,79675.0,79667.0,0.0892]
[1731255390816,0.167941,79675.0,79672.0,0.062703]
[1731255391217,0.10524,79675.0,79667.0,0.0892]
[1731255391404,0.10524,79675.0,79673.0,0.062703]
[1731255391811,0.10524,79675.0,79668.0,0.08468377]
[1731255392010,0.062702,79674.0,79668.0,0.08468377]
[1731255392312,0.062702,79674.0,79669.0,0.062706]
[1731255392620,0.062702,79674.0,79667.0,0.0892]
[1731255394020,0.062702,79674.0,79671.0,0.062704]
[1731255395020,0.062702,79674.0,79673.0,0.062703]
[1731255396517,0.10524,79675.0,79674.0,0.062702]
[1731255396717,0.10524,79675.0,79669.0,0.08468377]
[1731255396925,0.062704,79672.0,79670.0,0.03738889]
[1731255397509,0.062704,79672.0,79671.0,0.062704]
[1731255398017,0.19054,79675.0,79669.0,0.03738889]
[1731255398823,0.19054,79675.0,79667.0,0.0892]
[1731255399014,0.253242,79675.0,79670.0,0.062705]
[1731255399215,0.253242,79675.0,79671.0,0.062704]
[1731255399726,0.253242,79675.0,79672.0,0.062703]
[1731255400322,0.253242,79675.0,79673.0,0.062703]
[1731255400923,0.253242,79675.0,79667.0,0.08267493]
[1731255401126,0.19054,79675.0,79674.0,0.062702]
[1731255401425,0.3608,79678.0,79671.0,0.3608]
[1731255401723,0.10524,79676.0,79675.0,0.062701]
[1731255401919,0.05104199,79682.0,79681.0,0.062696]
[1731255402125,0.10524,79682.0,79681.0,0.062696]
[1731255402623,0.062691,79688.0,79682.0,0.062695]
[1731255402824,0.10524,79683.0,79682.0,0.062695]
[1731255407019,0.13596396,79683.0,79682.0,0.062695]
[1731255408528,0.10524,79683.0,79682.0,0.062695]
[1731255408929,0.10524,79683.0,79671.0,0.423504]
[1731255409228,0.062703,79672.0,79667.0,0.08267493]
[1731255409425,0.10516,79671.0,79668.0,0.062707]
[1731255409623,0.10516,79671.0,79667.0,0.08267493]
[1731255409825,0.10516,79671.0,79669.0,0.062706]
[1731255411123,0.3608,79677.0,79676.0,0.0627]
[1731255411323,0.02511169,79684.0,79679.0,0.062698]
[1731255411626,0.167855,79683.0,79679.0,0.062698]
[1731255411828,0.10516,79682.0,79679.0,0.062698]
[1731255412431,0.13588497,79681.0,79679.0,0.062698]
[1731255412622,0.03072497,79680.0,79679.0,0.062698]
[1731255412822,0.09342197,79680.0,79667.0,0.08267493]
[1731255413018,0.10516,79681.0,79667.0,0.08267493]
[1731255413218,0.062699,79678.0,79673.0,0.062702]
[1731255413717,0.062699,79678.0,79674.0,0.062701]
[1731255414133,0.03072628,79677.0,79674.0,0.062701]
[1731255414327,0.03072628,79676.0,79674.0,0.062701]
[1731255414627,0.0307265,79675.0,79674.0,0.062701]
[1731255415721,0.0627,79676.0,79674.0,0.062701]
[1731255416030,0.062701,79675.0,79674.0,0.062701]
[1731255416420,0.3608,79678.0,79667.0,0.08267493]
[1731255416623,0.154702,79674.0,79669.0,0.062706]
[1731255417437,0.154702,79674.0,79667.0,0.08267493]
[1731255417624,0.092,79674.0,79667.0,0.08267493]
[1731255417818,0.092,79674.0,79667.0,0.07474615]
[1731255418023,0.092,79674.0,79672.0,0.062703]
[1731255418533,0.092,79674.0,79673.0,0.062703]
[1731255424435,0.062704,79672.0,79667.0,0.062707]
[1731255424641,0.10516,79671.0,79661.0,0.05178697]
[1731255424831,0.10516,79671.0,79660.0,0.44548377]
[1731255425031,0.10516,79671.0,79668.0,0.423506]
[1731255425237,0.10516,79671.0,79668.0,0.3608]
[1731255425440,0.10516,79671.0,79670.0,0.062705]
[1731255426533,0.0936,79673.0,79671.0,0.062704]
[1731255426731,0.10516,79672.0,79671.0,0.062704]
[1731255427344,0.0936,79673.0,79672.0,0.062703]
[1731255427535,0.092,79674.0,79672.0,0.14738677]
[1731255427738,0.10516,79673.0,79672.0,0.062703]
[1731255428041,0.10516,79673.0,79672.0,0.14738677]
[1731255429638,0.092,79674.0,79672.0,0.062703]
[1731255429948,0.10516,79673.0,79672.0,0.062703]